lending/lending_fUSD_20240110
["ID","MTS","AMOUNT","RATE_DAILY","PERIOD"]
[311061289,1704891150736,-7322.32,0.00032876,2]
[311061290,1704891150745,-669.65,0.00032876,2]
[311061291,1704891150755,-883.98,0.00032876,2]
[311061292,1704891150765,-936.43,0.00032876,2]
[311061293,1704891150775,-500.0,0.00032876,2]
[311061294,1704891150785,-1931.34,0.00032876,2]
[311061295,1704891150795,-596.34,0.00032876,2]
[311061296,1704891150804,-591.04,0.00032876,2]
[311061297,1704891150814,-5311.52,0.00032876,2]
[311061298,1704891150824,-756.46,0.00032876,2]
[311061299,1704891150834,-1716.44,0.00032876,2]
[311061300,1704891150843,-390.5042484,0.00032876,2]
[311061301,1704891150854,-1935.34,0.00032876,2]
[311061302,1704891150863,-1335.68,0.00032876,2]
[311061303,1704891150873,-630.3,0.00032876,2]
[311061304,1704891150882,-11436.48,0.00032876,2]
[311061305,1704891150891,-896.69,0.00032876,2]
[311061306,1704891150901,-5273.56,0.00032876,2]
[311061307,1704891150911,-7205.25,0.00032876,2]
[311061308,1704891150921,-738.84,0.00032876,2]
[311061309,1704891150933,-500.0,0.00032876,2]
[311061310,1704891150943,-962.89,0.00032876,2]
[311061311,1704891150952,-1192.7,0.00032876,2]
[311061312,1704891150962,-717.02,0.00032876,2]
[311061313,1704891150972,-1285.43,0.00032876,2]
[311061314,1704891150982,-6876.74,0.00032876,2]
[311061315,1704891150991,-1732.97,0.00032876,2]
[311061316,1704891151001,-2245.33,0.00032876,2]
[311061317,1704891151011,-1567.49,0.00032876,2]
[311061318,1704891151021,-500.0,0.00032876,2]
[311061319,1704891151031,-7057.36,0.00032876,2]
[311061320,1704891151041,-790.0,0.00032876,2]
[311061321,1704891151051,-932.57,0.00032876,2]
[311061322,1704891151060,-2499.19,0.00032876,2]
[311061323,1704891151070,-1333.7,0.00032876,2]
[311061324,1704891151080,-6606.78,0.00032876,2]
[311061325,1704891151090,-2921.42,0.00032876,2]
[311061326,1704891151099,-500.0,0.00032876,2]
[311061327,1704891151109,-4128.32,0.00032876,2]
[311061328,1704891151120,-783.63,0.00032876,2]
[311061329,1704891151129,-682.44,0.00032876,2]
[311061330,1704891151140,-1293.22,0.00032876,2]
[311061331,1704891151150,-1047.14,0.00032876,2]
[311061332,1704891151160,-3328.34,0.00032876,2]
[311061333,1704891151171,-953.47,0.00032876,2]
[311061334,1704891151190,-2896.37,0.00032876,2]
[311061335,1704891151201,-668.72,0.00032876,2]
[311061336,1704891151211,-3025.67,0.00032876,2]
[311061337,1704891151222,-1350.56,0.00032876,2]
[311061338,1704891151233,-500.0,0.00032876,2]
[311061339,1704891151245,-2153.92,0.00032876,2]
[311061340,1704891151256,-2341.12,0.00032876,2]
[311061341,1704891151267,-2098.62,0.00032876,2]
[311061342,1704891151278,-703.2,0.00032876,2]
[311061343,1704891151289,-1930.74,0.00032876,2]
[311061344,1704891151300,-500.0,0.00032876,2]
[311061345,1704891151311,-240.83837406,0.00032876,2]
[311061346,1704891151321,-5339.67,0.00032876,2]
[311061347,1704891151333,-503.67,0.00032876,2]
[311061348,1704891151343,-500.0,0.00032876,2]
[311061349,1704891151354,-4486.53,0.00032876,2]
[311061350,1704891151364,-1093.38,0.00032876,2]
[311061351,1704891151375,-3990.83,0.00032876,2]
[311061352,1704891151385,-843.02,0.00032876,2]
[311061353,1704891151396,-3222.77,0.00032876,2]
[311061354,1704891151407,-915.67,0.00032876,2]
[311061355,1704891151417,-500.0,0.00032876,2]
[311061356,1704891151434,-6104.89,0.00032876,2]
[311061357,1704891151444,-397.20545333,0.00032876,2]
[311061358,1704891151454,-723.37,0.00032876,2]
[311061359,1704891151464,-500.0,0.00032876,2]
[311061360,1704891151474,-500.0,0.00032876,2]
[311061361,1704891151484,-1149.9,0.00032876,2]
[311061362,1704891151494,-291.74597253,0.00032876,2]
[311061363,1704891151503,-5798.03,0.00032876,2]
[311061364,1704891151512,-4625.49,0.00032876,2]
[311061365,1704891151522,-550.5,0.00032876,2]
[311061366,1704891151531,-13391.47,0.00032876,2]
[311061367,1704891151541,-1882.58,0.00032876,2]
[311061368,1704891151551,-1438.47,0.00032876,2]
[311061369,1704891151561,-3391.89,0.00032876,2]
[311061370,1704891151571,-17056.02,0.00032876,2]
[311061371,1704891151581,-1223.46,0.00032876,2]
[311061372,1704891151591,-1903.64,0.00032876,2]
[311061373,1704891151601,-535.17,0.00032876,2]
[311061374,1704891151610,-500.0,0.00032876,2]
[311061375,1704891151620,-1447.74,0.00032876,2]
[311061376,1704891151630,-903.74,0.00032876,2]
[311061377,1704891151639,-521.00036763,0.00032876,2]
[311061378,1704891151649,-1181.32,0.00032876,2]
[311061379,1704891151659,-897.9,0.00032876,2]
[311061380,1704891151669,-2647.12,0.00032876,2]
[311061381,1704891151684,-500.0,0.00032876,2]
[311061382,1704891151700,-3416.68,0.00032876,2]
[311061383,1704891151709,-500.0,0.00032876,2]
[311061384,1704891151719,-1323.99,0.00032876,2]
[311061385,1704891151731,-2765.04,0.00032876,2]
[311061386,1704891151740,-605.66,0.00032876,2]
[311061387,1704891151751,-533.64868471,0.00032876,2]
[311061388,1704891151761,-656.06,0.00032876,2]
[311061389,1704891151772,-1240.59,0.00032876,2]
[311061390,1704891151783,-1066.0,0.00032876,2]
[311061391,1704891151793,-3383.46,0.00032876,2]
[311061392,1704891151803,-1858.38,0.00032876,2]
[311061393,1704891151814,-556.19,0.00032876,2]
[311061394,1704891151824,-1414.02,0.00032876,2]
[311061395,1704891151834,-1721.84,0.00032876,2]
[311061396,1704891151845,-506.73,0.00032876,2]
[311061397,1704891151855,-6948.27,0.00032876,2]
[311061398,1704891151865,-500.0,0.00032876,2]
[311061399,1704891151876,-787.87,0.00032876,2]
[311061400,1704891151886,-905.55,0.00032876,2]
[311061401,1704891151896,-1113.97,0.00032876,2]
[311061402,1704891151906,-875.41,0.00032876,2]
[311061403,1704891151915,-1850.44,0.00032876,2]
[311061404,1704891151929,-13325.5,0.00032876,2]
[311061405,1704891151938,-622.97,0.00032876,2]
[311061406,1704891151948,-975.55,0.00032876,2]
[311061407,1704891151958,-2699.57,0.00032876,2]
[311061408,1704891151968,-816.51,0.00032876,2]
[311061409,1704891151978,-602.85,0.00032876,2]
[311061410,1704891151988,-1571.82,0.00032876,2]
[311061411,1704891151997,-1902.92,0.00032876,2]
[311061412,1704891152008,-1172.85,0.00032876,2]
[311061413,1704891152018,-1103.19,0.00032876,2]
[311061414,1704891152028,-1029.72,0.00032876,2]
[311061415,1704891152038,-551.04,0.00032876,2]
[311061416,1704891152048,-500.0,0.00032876,2]
[311061417,1704891152058,-719.09,0.00032876,2]
[311061418,1704891152067,-500.0,0.00032876,2]
[311061419,1704891152077,-816.66,0.00032876,2]
[311061420,1704891152086,-4042.49,0.00032876,2]
[311061421,1704891152096,-711.14,0.00032876,2]
[311061422,1704891152105,-750.11,0.00032876,2]
[311061423,1704891152115,-6582.51,0.00032876,2]
[311061424,1704891152124,-500.0,0.00032876,2]
[311061425,1704891152134,-548.8,0.00032876,2]
[311061426,1704891152144,-3983.8,0.00032876,2]
[311061427,1704891152154,-1032.31,0.00032876,2]
[311061428,1704891152164,-541.81,0.00032876,2]
[311061429,1704891152174,-3506.94,0.00032876,2]
[311061430,1704891152187,-1408.06,0.00032876,2]
[311061431,1704891152196,-1081.29,0.00032876,2]
[311061432,1704891152206,-1527.61,0.00032876,2]
[311061433,1704891152216,-8785.85,0.00032876,2]
[311061434,1704891152226,-2858.46,0.00032876,2]
[311061435,1704891152236,-660.7,0.00032876,2]
[311061436,1704891152245,-2768.41,0.00032876,2]
[311061437,1704891152255,-4131.39,0.00032876,2]
[311061438,1704891152265,-2292.41,0.00032876,2]
[311061439,1704891152274,-746.91,0.00032876,2]
[311061440,1704891152284,-2876.26,0.00032876,2]
[311061441,1704891152294,-2634.97,0.00032876,2]
[311061442,1704891152303,-2170.96,0.00032876,2]
[311061443,1704891152312,-1142.75,0.00032876,2]
[311061444,1704891152324,-1716.45,0.00032876,2]
[311061445,1704891152334,-602.26,0.00032876,2]
[311061446,1704891152346,-1039.47,0.00032876,2]
[311061447,1704891152356,-3670.86,0.00032876,2]
[311061448,1704891152366,-500.0,0.00032876,2]
[311061449,1704891152377,-500.0,0.00032876,2]
[311061450,1704891152387,-500.0,0.00032876,2]
[311061451,1704891152397,-614.41,0.00032876,2]
[311061452,1704891152406,-2195.0,0.00032876,2]
[311061453,1704891152415,-1673.5,0.00032876,2]
[311061454,1704891152428,-2390.42,0.00032876,2]
[311061455,1704891152438,-500.0,0.00032876,2]
[311061456,1704891152448,-3651.48,0.00032876,2]
[311061457,1704891152457,-5390.38,0.00032876,2]
[311061458,1704891152468,-38163.08,0.00032876,2]
[311061459,1704891152477,-1000.0,0.00032876,2]
[311061460,1704891152487,-500.0,0.00032876,2]
[311061461,1704891152498,-1305.31,0.00032876,2]
[311061462,1704891152508,-1396.89,0.00032876,2]
[311061463,1704891152517,-1467.77,0.00032876,2]
[311061464,1704891152527,-500.0,0.00032876,2]
[311061465,1704891152536,-1697.53,0.00032876,2]
[311061466,1704891152546,-500.0,0.00032876,2]
[311061467,1704891152556,-500.0,0.00032876,2]
[311061468,1704891152566,-500.0,0.00032876,2]
[311061469,1704891152575,-500.0,0.00032876,2]
[311061470,1704891152585,-14627.59,0.00032876,2]
[311061471,1704891152595,-2605.66,0.00032876,2]
[311061472,1704891152604,-500.0,0.00032876,2]
[311061473,1704891152614,-500.0,0.00032876,2]
[311061474,1704891152623,-500.0,0.00032876,2]
[311061475,1704891152632,-500.0,0.00032876,2]
[311061476,1704891152642,-500.0,0.00032876,2]
[311061477,1704891152651,-500.0,0.00032876,2]
[311061478,1704891152661,-500.0,0.00032876,2]
[311061479,1704891152670,-1698.7,0.00032876,2]
[311061480,1704891152682,-601.21,0.00032876,2]
[311061481,1704891152691,-3381.31,0.00032876,2]
[311061482,1704891152701,-3094.77,0.00032876,2]
[311061483,1704891152715,-999.48,0.00032876,2]
[311061484,1704891152724,-607.81,0.00032876,2]
[311061485,1704891152733,-30990.15,0.00032876,2]
[311061486,1704891152743,-2892.8,0.00032876,2]
[311061487,1704891152752,-5290.12,0.00032876,2]
[311061488,1704891152762,-500.0,0.00032876,2]
[311061489,1704891152771,-1578.38,0.00032876,2]
[311061490,1704891152781,-2017.0,0.00032876,2]
[311061491,1704891152792,-840.86,0.00032876,2]
[311061492,1704891152802,-500.0,0.00032876,2]
[311061493,1704891152811,-4827.58,0.00032876,2]
[311061494,1704891152821,-3994.86,0.00032876,2]
[311061495,1704891152831,-1048.25,0.00032876,2]
[311061496,1704891152840,-642.94,0.00032876,2]
[311061497,1704891152850,-1904.14,0.00032876,2]
[311061498,1704891152859,-500.0,0.00032876,2]
[311061499,1704891152869,-1424.2,0.00032876,2]
[311061500,1704891152879,-539.92,0.00032876,2]
[311061501,1704891152889,-1050.78,0.00032876,2]
[311061502,1704891152898,-500.0,0.00032876,2]
[311061503,1704891152908,-2602.05,0.00032876,2]
[311061504,1704891152917,-5503.03,0.00032876,2]
[311061505,1704891152930,-1522.78,0.00032876,2]
[311061506,1704891152940,-2260.26,0.00032876,2]
[311061507,1704891152949,-821.97,0.00032876,2]
[311061508,1704891152959,-753.71,0.00032876,2]
[311061509,1704891152968,-1838.58,0.00032876,2]
[311061510,1704891152978,-901.27,0.00032876,2]
[311061511,1704891152988,-782.96,0.00032876,2]
[311061512,1704891152997,-6384.72,0.00032876,2]
[311061513,1704891153007,-627.49,0.00032876,2]
[311061514,1704891153017,-599.02,0.00032876,2]
[311061515,1704891153026,-500.0,0.00032876,2]
[311061516,1704891153036,-632.63,0.00032876,2]
[311061517,1704891153045,-2196.77,0.00032876,2]
[311061518,1704891153055,-864.41,0.00032876,2]
[311061519,1704891153065,-2505.88,0.00032876,2]
[311061520,1704891153074,-1516.0,0.00032876,2]
[311061521,1704891153084,-6045.31,0.00032876,2]
[311061522,1704891153094,-3365.53,0.00032876,2]
[311061523,1704891153105,-1765.01,0.00032876,2]
[311061524,1704891153114,-720.09,0.00032876,2]
[311061525,1704891153124,-870.91,0.00032876,2]
[311061526,1704891153133,-500.0,0.00032876,2]
[311061527,1704891153143,-927.81,0.00032876,2]
[311061528,1704891153153,-2120.01,0.00032876,2]
[311061529,1704891153162,-1570.4,0.00032876,2]
[311061530,1704891153172,-868.01,0.00032876,2]
[311061531,1704891153184,-500.0,0.00032876,2]
[311061532,1704891153193,-767.25,0.00032876,2]
[311061533,1704891153203,-500.0,0.00032876,7]
[311061534,1704891153212,-309.53710685,0.00032876,7]
[311061535,1704891153221,-419.81435937,0.00032876,7]
[311061536,1704891153231,-500.0,0.00032876,7]
[311061537,1704891153241,-500.0,0.00032876,7]
[311061538,1704891153250,-2584.72,0.00032876,2]
[311061539,1704891153261,-5200.93,0.00032876,2]
[311061540,1704891153271,-1450.1,0.00032876,2]
[311061541,1704891153281,-1551.81,0.00032876,2]
[311061542,1704891153291,-602.13,0.00032876,2]
[311061543,1704891153301,-754.64,0.00032876,2]
[311061544,1704891153310,-3512.62,0.00032876,2]
[311061545,1704891153320,-1650.34,0.00032876,2]
[311061546,1704891153329,-500.0,0.00032876,2]
[311061547,1704891153339,-813.75,0.00032876,2]
[311061548,1704891153349,-2261.23,0.00032876,2]
[311061549,1704891153359,-166.82683811,0.00032876,7]
[311061550,1704891153369,-577.76,0.00032877,15]
[311061551,1704891153378,-300.0,0.00032877,30]
[311061552,1704891153388,-170.07205982,0.00032877,30]
[311061553,1704891153398,-457.50605,0.0003288,2]
[311061554,1704891153408,-500.0,0.000329,2]
[311061555,1704891153417,-151.0,0.00032961,30]
[311061556,1704891153427,-50000.0,0.00033,2]
[311061557,1704891153437,-4873.79092382,0.00033,2]
[311061558,1704891153446,-6909.9381706,0.00033,10]
[311061559,1704891153456,-1457.63884427,0.00033,5]
[311061560,1704891153465,-2000.0,0.00033,2]
[311061561,1704891153474,-900.0,0.00033,34]
[311061562,1704891153483,-504.083583,0.00033,3]
[311061563,1704891153493,-203952.75265757,0.0003309,2]
[311061564,1704891153502,-500.0,0.00033116,2]
[311061565,1704891153512,-2468.8761738,0.00033127,2]
[311061566,1704891153521,-2563.4832316,0.00033127,2]
[311061567,1704891153530,-183232.1774717,0.00033127,2]
[311061568,1704891153540,-150.0,0.00033149,2]
[311061569,1704891153549,-1305.2,0.0003315,2]
[311061570,1704891153558,-1164.78,0.0003315,2]
[311061571,1704891153567,-632.81,0.0003315,2]
[311061572,1704891153577,-691.12,0.0003315,2]
[311061573,1704891153586,-610.62,0.0003315,2]
[311061574,1704891153595,-570.49,0.0003315,2]
[311061575,1704891153604,-648.06,0.0003315,2]
[311061576,1704891153614,-528.22,0.0003315,2]
[311061577,1704891153623,-500.0,0.0003315,2]
[311061578,1704891153632,-613.28,0.0003315,2]
[311061579,1704891153641,-500.0,0.0003315,2]
[311061580,1704891153651,-606.62,0.0003315,2]
[311061581,1704891153661,-1296.75,0.0003315,2]
[311061582,1704891153671,-539.9,0.0003315,2]
[311061583,1704891153683,-549.61,0.0003315,2]
[311061584,1704891153692,-500.0,0.0003315,2]
[311061585,1704891153702,-500.0,0.0003315,2]
[311061586,1704891153711,-554.24,0.0003315,2]
[311061587,1704891153721,-604.42,0.0003315,2]
[311061588,1704891153730,-500.0,0.0003315,2]
[311061589,1704891153740,-597.45,0.0003315,2]
[311061590,1704891153749,-715.45,0.0003315,2]
[311061591,1704891153758,-731.09,0.0003315,2]
[311061592,1704891153768,-500.0,0.0003315,2]
[311061593,1704891153778,-767.17,0.0003315,2]
[311061594,1704891153788,-1110.47,0.0003315,2]
[311061595,1704891153798,-226.96337727,0.0003315,2]
[311061596,1704891153807,-500.0,0.0003315,2]
[311061597,1704891153817,-500.0,0.0003315,2]
[311061598,1704891153826,-500.0,0.0003315,2]
[311061599,1704891153835,-914.12,0.0003315,2]
[311061600,1704891153845,-500.0,0.0003315,2]
[311061601,1704891153854,-500.0,0.0003315,2]
[311061602,1704891153864,-843.45,0.0003315,2]
[311061603,1704891153873,-540.71,0.0003315,2]
[311061604,1704891153882,-500.0,0.0003315,2]
[311061605,1704891153892,-833.64,0.0003315,2]
[311061606,1704891153901,-538.20850045,0.0003315,2]
[311061607,1704891153910,-919.36,0.0003315,2]
[311061608,1704891153920,-500.0,0.0003315,2]
[311061609,1704891153932,-500.0,0.0003315,2]
[311061610,1704891153941,-780.81,0.0003315,4]
[311061611,1704891153950,-673.2,0.0003315,2]
[311061612,1704891153960,-549.17,0.0003315,2]
[311061613,1704891153970,-592.78,0.0003315,10]
[311061614,1704891153981,-929.48,0.0003315,2]
[311061615,1704891153991,-500.0,0.0003315,2]
[311061616,1704891154001,-783.37,0.0003315,2]
[311061617,1704891154010,-500.0,0.0003315,2]
[311061618,1704891154020,-526.95,0.0003315,2]
[311061619,1704891154029,-500.0,0.0003315,2]
[311061620,1704891154039,-718.34,0.0003315,2]
[311061621,1704891154048,-796.39,0.0003315,2]
[311061622,1704891154057,-500.0,0.0003315,2]
[311061623,1704891154067,-516.97,0.0003315,2]
[311061624,1704891154076,-603.93,0.0003315,2]
[311061625,1704891154086,-953.36,0.0003315,2]
[311061626,1704891154095,-595.36,0.0003315,2]
[311061627,1704891154105,-999.87,0.0003315,2]
[311061628,1704891154119,-799.61,0.0003315,2]
[311061629,1704891154131,-500.0,0.0003315,2]
[311061630,1704891154143,-679.43,0.0003315,2]
[311061631,1704891154153,-545.66,0.0003315,2]
[311061632,1704891154162,-911.61,0.0003315,2]
[311061633,1704891154174,-608.6,0.0003315,2]
[311061634,1704891154186,-500.0,0.0003315,2]
[311061635,1704891154196,-500.0,0.0003315,2]
[311061636,1704891154206,-528.0,0.0003315,2]
[311061637,1704891154216,-717.61,0.0003315,2]
[311061638,1704891154225,-668.27,0.0003315,2]
[311061639,1704891154235,-500.0,0.0003315,2]
[311061640,1704891154246,-922.19,0.0003315,2]
[311061641,1704891154256,-300.0,0.0003315,2]
[311061642,1704891154267,-500.0,0.0003315,2]
[311061643,1704891154277,-500.0,0.0003315,2]
[311061644,1704891154288,-500.0,0.0003315,2]
[311061645,1704891154299,-1150.48,0.0003315,2]
[311061646,1704891154309,-500.0,0.0003315,2]
[311061647,1704891154320,-500.0,0.0003315,2]
[311061648,1704891154332,-500.0,0.0003315,2]
[311061649,1704891154343,-856.23,0.0003315,2]
[311061650,1704891154352,-500.0,0.0003315,2]
[311061651,1704891154362,-943.83,0.0003315,2]
[311061652,1704891154374,-677.16,0.0003315,2]
[311061653,1704891154383,-500.0,0.0003315,2]
[311061654,1704891154394,-1357.7,0.0003315,2]
[311061655,1704891154405,-819.95,0.0003315,2]
[311061656,1704891154414,-944.54,0.0003315,2]
[311061657,1704891154424,-613.7,0.0003315,2]
[311061658,1704891154439,-845.23,0.0003315,2]
[311061659,1704891154449,-1144.78,0.0003315,2]
[311061660,1704891154458,-500.0,0.0003315,2]
[311061661,1704891154468,-572.57,0.0003315,2]
[311061662,1704891154478,-523.04,0.0003315,2]
[311061663,1704891154488,-981.88,0.0003315,2]
[311061664,1704891154497,-500.0,0.0003315,2]
[311061665,1704891154507,-500.0,0.0003315,2]
[311061666,1704891154517,-500.0,0.0003315,2]
[311061667,1704891154527,-1009.3,0.0003315,2]
[311061668,1704891154536,-804.49,0.0003315,2]
[311061669,1704891154546,-649.5783445,0.0003315,2]
[311061670,1704891154556,-500.0,0.0003315,2]
[311061671,1704891154566,-626.97,0.0003315,2]
[311061672,1704891154576,-679.35,0.0003315,2]
[311061673,1704891154585,-688.65,0.0003315,2]
[311061674,1704891154595,-1228.41,0.0003315,2]
[311061675,1704891154605,-835.39,0.0003315,2]
[311061676,1704891154615,-500.0,0.0003315,2]
[311061677,1704891154626,-567.03,0.0003315,2]
[311061678,1704891154640,-664.11,0.0003315,2]
[311061679,1704891154650,-699.18,0.0003315,2]
[311061680,1704891154659,-729.83,0.0003315,2]
[311061681,1704891154668,-500.0,0.0003315,2]
[311061682,1704891154680,-574.64,0.0003315,2]
[311061683,1704891154689,-847.62,0.0003315,2]
[311061684,1704891154699,-500.0,0.0003315,2]
[311061685,1704891154708,-1277.67,0.0003315,2]
[311061686,1704891154717,-755.08,0.0003315,2]
[311061687,1704891154727,-1281.13,0.0003315,2]
[311061688,1704891154737,-667.72,0.0003315,2]
[311061689,1704891154746,-1050.74,0.0003315,2]
[311061690,1704891154756,-1129.59,0.0003315,2]
[311061691,1704891154766,-1299.52,0.0003315,2]
[311061692,1704891154775,-500.0,0.0003315,2]
[311061693,1704891154914,-500.0,0.0003315,2]
[311061694,1704891154925,-665.14,0.0003315,2]
[311061695,1704891154937,-1462.15,0.0003315,2]
[311061696,1704891154947,-883.1,0.0003315,2]
[311061697,1704891154957,-736.72,0.0003315,2]
[311061698,1704891154966,-932.0,0.0003315,2]
[311061699,1704891154976,-933.85,0.0003315,2]
[311061700,1704891154986,-715.55,0.0003315,2]
[311061701,1704891154996,-500.0,0.0003315,2]
[311061702,1704891155005,-643.72975651,0.0003315,2]
[311061703,1704891155016,-616.84,0.0003315,2]
[311061704,1704891155027,-1106.31,0.0003315,2]
[311061705,1704891155038,-989.02,0.0003315,2]
[311061706,1704891155048,-500.0,0.0003315,2]
[311061707,1704891155058,-500.0,0.0003315,2]
[311061708,1704891155068,-1108.12,0.0003315,2]
[311061709,1704891155078,-1195.8,0.0003315,2]
[311061710,1704891155089,-1806.82,0.0003315,2]
[311061711,1704891155100,-915.35,0.0003315,2]
[311061712,1704891155110,-1387.71,0.0003315,2]
[311061713,1704891155121,-778.7,0.0003315,2]
[311061714,1704891155132,-1503.57,0.0003315,2]
[311061715,1704891155143,-556.89,0.0003315,2]
[311061716,1704891155153,-1262.12,0.0003315,2]
[311061717,1704891155164,-728.24,0.0003315,2]
[311061718,1704891155174,-749.59,0.0003315,2]
[311061719,1704891155187,-500.0,0.0003315,2]
[311061720,1704891155197,-968.99,0.0003315,2]
[311061721,1704891155207,-500.0,0.0003315,2]
[311061722,1704891155217,-1148.53,0.0003315,2]
[311061723,1704891155227,-500.0,0.0003315,2]
[311061724,1704891155239,-1486.97,0.0003315,2]
[311061725,1704891155250,-1273.18,0.0003315,2]
[311061726,1704891155260,-500.0,0.0003315,2]
[311061727,1704891155272,-500.0,0.0003315,2]
[311061728,1704891155282,-1334.19,0.0003315,2]
[311061729,1704891155293,-810.04,0.0003315,2]
[311061730,1704891155304,-884.9,0.0003315,2]
[311061731,1704891155315,-945.46,0.0003315,2]
[311061732,1704891155326,-500.0,0.0003315,2]
[311061733,1704891155337,-566.84,0.0003315,2]
[311061734,1704891155348,-500.0,0.0003315,2]
[311061735,1704891155358,-500.0,0.0003315,2]
[311061736,1704891155369,-659.65,0.0003315,2]
[311061737,1704891155380,-1698.48,0.0003315,2]
[311061738,1704891155391,-1658.69,0.0003315,2]
[311061739,1704891155402,-1894.62,0.0003315,2]
[311061740,1704891155413,-530.43,0.0003315,2]
[311061741,1704891155424,-648.28,0.0003315,2]
[311061742,1704891155442,-635.25,0.0003315,2]
[311061743,1704891155453,-716.26,0.0003315,2]
[311061744,1704891155463,-500.0,0.0003315,2]
[311061745,1704891155474,-659.2,0.0003315,2]
[311061746,1704891155485,-1075.0,0.0003315,2]
[311061747,1704891155496,-912.69,0.0003315,2]
[311061748,1704891155507,-500.0,0.0003315,2]
[311061749,1704891155519,-994.89,0.0003315,2]
[311061750,1704891155531,-536.25,0.0003315,2]
[311061751,1704891155543,-535.04,0.0003315,2]
[311061752,1704891155555,-500.0,0.0003315,2]
[311061753,1704891155567,-763.92,0.0003315,2]
[311061754,1704891155577,-1507.5,0.0003315,2]
[311061755,1704891155588,-1352.86,0.0003315,2]
[311061756,1704891155599,-500.0,0.0003315,2]
[311061757,1704891155610,-763.85,0.0003315,2]
[311061758,1704891155621,-552.38856986,0.0003315,2]
[311061759,1704891155631,-1058.85,0.0003315,2]
[311061760,1704891155642,-1144.7,0.0003315,2]
[311061761,1704891155653,-592.06,0.0003315,2]
[311061762,1704891155663,-500.0,0.0003315,2]
[311061763,1704891155675,-982.41,0.0003315,2]
[311061764,1704891155693,-500.0,0.0003315,2]
[311061765,1704891155705,-500.0,0.0003315,2]
[311061766,1704891155715,-500.0,0.0003315,2]
[311061767,1704891155726,-960.45,0.0003315,2]
[311061768,1704891155737,-1268.39,0.0003315,2]
[311061769,1704891155748,-1187.57,0.0003315,2]
[311061770,1704891155760,-1176.82,0.0003315,2]
[311061771,1704891155771,-500.0,0.0003315,2]
[311061772,1704891155781,-1591.28,0.0003315,2]
[311061773,1704891155792,-982.23,0.0003315,2]
[311061774,1704891155802,-960.81,0.0003315,2]
[311061775,1704891155812,-500.0,0.0003315,2]
[311061776,1704891155824,-1435.01,0.0003315,2]
[311061777,1704891155834,-1207.08,0.0003315,2]
[311061778,1704891155844,-771.19,0.0003315,2]
[311061779,1704891155855,-1012.64,0.0003315,2]
[311061780,1704891155866,-1395.58,0.0003315,2]
[311061781,1704891155877,-1128.18,0.0003315,2]
[311061782,1704891155888,-1055.12,0.0003315,2]
[311061783,1704891155898,-524.56,0.0003315,2]
[311061784,1704891155909,-500.0,0.0003315,2]
[311061785,1704891155919,-620.01,0.0003315,2]
[311061786,1704891155932,-1511.92,0.0003315,2]
[311061787,1704891155942,-835.1,0.0003315,2]
[311061788,1704891155952,-1179.08,0.0003315,2]